[Event "23rd Hoogeveen Open 2019"]
[Site "Hoogeveen"]
[Date "2019.10.20"]
[Round "2.11"]
[White "Harutjunyan, Gevorg"]
[Black "Advait, Bagri"]
[Result "1/2-1/2"]
[ECO "D11"]
[WhiteElo "2428"]
[BlackElo "2231"]
[Annotator "NA"]
[PlyCount "132"]
[EventDate "2019.10.19"]
[EventType "swiss"]
[EventCountry "NED"]
[SourceTitle "playchess.com"]
[Source "ChessBase"]
[SourceQuality "1"]
[TimeControl "40/5400+30:1800+30"]

1. Nf3 {[%emt 0:00:00]} d5 {[%emt 0:06:00]} 2. g3 {[%emt 0:00:00]} Nf6 {[%emt 0:00:44]} 3. Bg2 {[%emt 0:00:00]} Bg4 {[%emt 0:00:18]} 4. c4 {[%emt 0:01:32]} c6 {[%emt 0:00:30]} 5. Qb3 {[%emt 0:02:01]} Qb6 {[%emt 0:02:15]} 6. Nc3 {[%emt 0:00:56]} e6 {[%emt 0:02:17]} 7. d4 {[%emt 0:12:00]} Nbd7 {[%emt 0:00:32]} 8. O-O {[%emt 0:00:46]} Be7 {[%emt 0:02:18]} 9. Bf4 {[%emt 0:04:56]} O-O {[%emt 0:03:44]} 10. c5 {[%emt 0:07:14]} Qa6 {[%emt 0:01:37]} 11. h3 {[%emt 0:06:01]} Bh5 {[%emt 0:05:30]} 12. Rfc1 {[%emt 0:11:30]} b6 {[%emt 0:11:23]} 13. Qa4 {[%emt 0:07:25]} Qxa4 {[%emt 0:08:20]} 14. Nxa4 {[%emt 0:00:14]} Ne4 {[%emt 0:11:07]} 15. b4 $11 {[%emt 0:05:41]} g5 {[%emt 0:04:48]} 16. Bd6 {[%emt 0:09:48]} Bxd6 {[%emt 0:11:56]} 17. cxd6 {[%emt 0:00:32]} Bxf3 {[%emt 0:01:29]} 18. Bxf3 {[%emt 0:02:25]} Nxd6 {[%emt 0:02:04]} 19. Rxc6 {[%emt 0:00:13]} Nc4 {[%emt 0:04:01]} 20. Rc1 {[%emt 0:16:47]} a5 {[%emt 0:03:48]} 21. R6xc4 {[%emt 0:02:02]} dxc4 {[%emt 0:00:20]} 22. Bxa8 {[%emt 0:00:04]} Rxa8 {[%emt 0:00:10]} 23. b5 {[%emt 0:00:07]} Rc8 {[%emt 0:01:23]} 24. Rc3 {[%emt 0:01:17]} f5 {[%emt 0:05:57]} 25. f4 {[%emt 0:02:40]} gxf4 {[%emt 0:01:25]} 26. gxf4 {[%emt 0:00:04]} Kf7 {[%emt 0:02:15]} 27. Nb2 {[%emt 0:01:05]} Nf6 {[%emt 0:00:58]} 28. Rxc4 {[%emt 0:01:02]} Rxc4 {[%emt 0:00:05]} 29. Nxc4 {[%emt 0:00:04]} Nd5 {[%emt 0:00:06]} 30. Kf2 {[%emt 0:01:04]} Ke7 {[%emt 0:03:03]} 31. Kf3 {[%emt 0:02:32]} Nc3 {[%emt 0:00:17]} 32. Nxb6 {[%emt 0:00:28]} Nxb5 {[%emt 0:00:07]} 33. e3 {[%emt 0:01:17]} Nc3 {[%emt 0:00:15]} 34. a3 {[%emt 0:00:15]} a4 {[%emt 0:02:13]} 35. Kf2 {[%emt 0:02:48]} Kd6 {[%emt 0:00:15]} 36. Ke1 {[%emt 0:00:30]} Kc6 {[%emt 0:00:19]} 37. Nc4 {[%emt 0:00:09]} Kd5 {[%emt 0:00:09]} 38. Nb2 {[%emt 0:00:52]} Ke4 {[%emt 0:00:33]} 39. Kf2 {[%emt 0:00:23]} h6 {[%emt 0:00:14]} 40. h4 {[%emt 0:00:41]} h5 {[%emt 0:00:09]} 41. Nc4 {[%emt 0:30:30]} Kd3 {[%emt 0:32:40]} 42. Nd6 {[%emt 0:00:00]} Kc2 {[%emt 0:00:00]} 43. e4 {[%emt 0:00:00]} fxe4 {[%emt 0:00:00]} 44. Ke3 {[%emt 0:00:00]} Kb2 {[%emt 0:00:00]} 45. Nxe4 {[%emt 0:00:00]} Nxe4 {[%emt 0:00:00]} 46. Kxe4 {[%emt 0:00:00]} Kxa3 {[%emt 0:00:00]} 47. f5 {[%emt 0:00:00]} exf5+ {[%emt 0:00:00]} 48. Kxf5 {[%emt 0:00:00]} Kb4 {[%emt 0:00:00]} 49. d5 {[%emt 0:00:00]} a3 {[%emt 0:00:00]} 50. d6 {[%emt 0:00:00]} a2 {[%emt 0:00:00]} 51. d7 {[%emt 0:00:00]} a1=Q {[%emt 0:00:09]} 52. d8=Q {[%emt 0:00:00]} Qg7 {[%emt 0:00:00]} 53. Qd2+ {[%emt 0:00:00]} Kc5 {[%emt 0:00:00]} 54. Qc1+ {[%emt 0:00:00]} Kd5 {[%emt 0:00:00]} 55. Qd1+ {[%emt 0:00:00]} Kc6 {[%emt 0:00:00]} 56. Qa4+ {[%emt 0:00:00]} Kd6 {[%emt 0:00:00]} 57. Qa3+ {[%emt 0:00:00]} Kd5 {[%emt 0:00:00]} 58. Qa2+ {[%emt 0:01:14]} Kd6 {[%emt 0:00:00]} 59. Qe6+ {[%emt 0:00:32]} Kc7 {[%emt 0:00:00]} 60. Ke4 {[%emt 0:02:19]} Kd8 {[%emt 0:00:00]} 61. Qd5+ {[%emt 0:00:14]} Ke7 {[%emt 0:00:00]} 62. Qc5+ {[%emt 0:00:45]} Kf7 {[%emt 0:00:00]} 63. Qd5+ {[%emt 0:00:17]} Kf8 {[%emt 0:00:00]} 64. Qxh5 {[%emt 0:01:53]} Qb7+ {[%emt 0:00:00]} 65. Kf4 {[%emt 0:00:10]} Qb4+ {[%emt 0:00:00]} 66. Kg3 {[%emt 0:00:17]} Qc3+ {[%emt 0:00:00]} 1/2-1/2

[Event "23rd Hoogeveen Open 2019"]
[Site "Hoogeveen"]
[Date "2019.10.20"]
[Round "2.12"]
[White "Mueer, Sebastian"]
[Black "Zwirs, Nico"]
[Result "1/2-1/2"]
[ECO "E90"]
[WhiteElo "2194"]
[BlackElo "2421"]
[Annotator "NA"]
[PlyCount "151"]
[EventDate "2019.10.19"]
[EventType "swiss"]
[EventCountry "NED"]
[SourceTitle "playchess.com"]
[Source "ChessBase"]
[SourceQuality "1"]
[TimeControl "40/5400+30:1800+30"]

1. Nf3 {[%emt 0:00:00]} Nf6 {[%emt 0:00:00]} 2. c4 {[%emt 0:00:00]} g6 {[%emt 0:01:27]} 3. Nc3 {[%emt 0:00:05]} Bg7 {[%emt 0:00:06]} 4. e4 {[%emt 0:00:33]} d6 {[%emt 0:00:07]} 5. d4 {[%emt 0:00:06]} O-O {[%emt 0:00:08]} 6. h3 {[%emt 0:00:08]} e5 {[%emt 0:00:08]} 7. d5 {[%emt 0:00:05]} a5 {[%emt 0:00:30]} 8. Be3 {[%emt 0:00:16]} Na6 {[%emt 0:00:10]} 9. g4 {[%emt 0:00:07]} h5 {[%emt 0:00:25]} 10. g5 {[%emt 0:10:41]} Nd7 {[%emt 0:01:00]} 11. Rg1 {[%emt 0:04:34]} Nac5 {[%emt 0:03:42]} 12. Nh4 {[%emt 0:36:55]} Nb6 {[%emt 0:21:58]} 13. Qf3 {[%emt 0:07:05]} (13. Qc2 $14) 13... c6 {[%emt 0:11:21] [#]} ({Better is} 13... Nba4 $11) 14. O-O-O {[%emt 0:05:21]} (14. Nf5 $1 $14 {[%mdl 512]}) 14... cxd5 $2 {[%emt 0:01:31]} (14... Nba4 $1 $15 {keeps the upper hand.}) 15. Bxc5 $1 {[%emt 0:02:38]} dxc5 {[%emt 0:01:38]} 16. exd5 $16 {[%emt 0:00:20]} ({Much worse is} 16. cxd5 $6 Bd7 $11) 16... Bg4 {[%emt 0:24:52]} 17. hxg4 {[%emt 0:09:15]} Qxg5+ {[%emt 0:00:14]} 18. Kb1 {[%emt 0:00:27]} Qxh4 {[%emt 0:00:06]} 19. gxh5 {[%emt 0:02:41]} Qxh5 {[%emt 0:00:20]} 20. Qxh5 {[%emt 0:02:02]} gxh5 {[%emt 0:01:28]} 21. Ne4 {[%emt 0:00:27]} Kh7 {[%emt 0:19:33]} 22. Bd3 {[%emt 0:11:26]} f5 {[%emt 0:00:56]} 23. Nd6 {[%emt 0:00:02]} e4 {[%emt 0:01:59]} 24. Nxf5 {[%emt 0:00:01]} exd3 {[%emt 0:00:53]} 25. Rxg7+ {[%emt 0:00:02]} Kh8 {[%emt 0:00:09]} 26. Rg5 {[%emt 0:00:04]} Rf7 {[%emt 0:00:54]} 27. b3 {[%emt 0:06:01]} Rh7 {[%emt 0:03:26]} 28. Rh1 {[%emt 0:00:36]} Rg8 {[%emt 0:00:46]} 29. Rgxh5 {[%emt 0:00:38]} Rg1+ {[%emt 0:00:10]} 30. Rxg1 {[%emt 0:00:12]} Rxh5 {[%emt 0:00:00]} 31. Ng3 {[%emt 0:00:26]} Re5 {[%emt 0:00:36]} 32. Kc1 {[%emt 0:00:32]} a4 {[%emt 0:00:35]} 33. Kd2 {[%emt 0:00:10]} axb3 {[%emt 0:02:15]} 34. axb3 {[%emt 0:00:01]} Nd7 {[%emt 0:00:37]} 35. f4 {[%emt 0:01:25]} Re8 {[%emt 0:00:56]} 36. Kxd3 {[%emt 0:00:47]} Nf6 {[%emt 0:00:13]} 37. Rh1+ {[%emt 0:01:27]} Kg8 {[%emt 0:00:01]} 38. Nf5 {[%emt 0:00:34]} b5 {[%emt 0:00:56]} 39. Rg1+ {[%emt 0:00:26]} Kf8 {[%emt 0:00:16]} 40. Rg6 {[%emt 0:00:38]} Nh5 {[%emt 0:01:01]} 41. Rg4 {[%emt 0:02:03]} bxc4+ {[%emt 0:01:07]} 42. Kxc4 {[%emt 0:04:17]} Re1 {[%emt 0:00:22]} 43. Kxc5 {[%emt 0:02:49]} Nf6 {[%emt 0:00:36]} 44. Rh4 {[%emt 0:01:41]} Rc1+ {[%emt 0:01:19]} 45. Kd6 {[%emt 0:02:20]} Kf7 {[%emt 0:00:19]} 46. Nh6+ {[%emt 0:03:33]} Kg6 {[%emt 0:00:35]} 47. Ng4 {[%emt 0:00:34]} Ne4+ {[%emt 0:02:07]} 48. Ke7 {[%emt 0:03:55]} Rc3 {[%emt 0:08:39]} 49. b4 {[%emt 0:02:19]} Rb3 {[%emt 0:00:43]} 50. d6 {[%emt 0:01:53]} Rxb4 {[%emt 0:01:03]} 51. d7 {[%emt 0:00:33]} Rb7 {[%emt 0:00:09]} 52. Rh6+ {[%emt 0:04:17]} Kf5 {[%emt 0:01:50]} 53. Ne5 {[%emt 0:05:11]} Kxf4 {[%emt 0:02:56]} 54. Ke8 {[%emt 0:00:47]} Rb8+ {[%emt 0:00:14]} 55. d8=Q {[%emt 0:00:32]} Rxd8+ {[%emt 0:00:04]} 56. Kxd8 {[%emt 0:00:08]} Kxe5 {[%emt 0:00:03]} 57. Ke7 {[%emt 0:00:12]} Ng3 {[%emt 0:00:43]} 58. Re6+ {[%emt 0:00:17]} Kf5 {[%emt 0:01:08]} 59. Ra6 {[%emt 0:00:26]} Ke5 {[%emt 0:00:46]} 60. Ra5+ {[%emt 0:00:06]} Kf4 {[%emt 0:00:07]} 61. Ke6 {[%emt 0:00:17]} Ne2 {[%emt 0:02:57]} 62. Ra4+ {[%emt 0:00:27]} Ke3 {[%emt 0:01:28]} 63. Ke5 {[%emt 0:00:15]} Nc3 {[%emt 0:00:39]} 64. Rd4 {[%emt 0:01:46]} Ne2 {[%emt 0:00:27]} 65. Rh4 {[%emt 0:00:36]} Kd3 {[%emt 0:01:25]} 66. Rh2 {[%emt 0:01:13]} Nc3 {[%emt 0:00:11]} 67. Rh3+ {[%emt 0:00:37]} Kc4 {[%emt 0:00:06]} 68. Rh8 {[%emt 0:00:34]} Kd3 {[%emt 0:00:07]} 69. Rc8 {[%emt 0:00:16]} Ne2 {[%emt 0:00:08]} 70. Rd8+ {[%emt 0:00:32]} Ke3 {[%emt 0:00:09]} 71. Rd1 {[%emt 0:01:00]} Nc3 {[%emt 0:00:07]} 72. Rd4 {[%emt 0:00:06]} Ne2 {[%emt 0:00:07]} 73. Ra4 {[%emt 0:00:28]} Nc3 {[%emt 0:00:06]} 74. Ra3 {[%emt 0:00:06]} Kd3 {[%emt 0:00:06]} 75. Rxc3+ {[%emt 0:00:06]} Kxc3 {[%emt 0:00:32]} 76. Ke4 {[%emt 0:00:04]} 1/2-1/2

[Event "23rd Hoogeveen Open 2019"]
[Site "Hoogeveen"]
[Date "2019.10.20"]
[Round "2.13"]
[White "Kaasen, Tor Fredrik"]
[Black "Adocchio, Giampiero"]
[Result "1/2-1/2"]
[ECO "D31"]
[WhiteElo "2415"]
[BlackElo "2184"]
[Annotator "NA"]
[PlyCount "99"]
[EventDate "2019.10.19"]
[EventType "swiss"]
[EventCountry "NED"]
[SourceTitle "playchess.com"]
[Source "ChessBase"]
[SourceQuality "1"]
[TimeControl "40/5400+30:1800+30"]

1. d4 {[%emt 0:00:00]} d5 {[%emt 0:00:00]} 2. c4 {[%emt 0:00:24]} e6 {[%emt 0:00:00]} 3. Nc3 {[%emt 0:00:26]} Be7 {[%emt 0:00:03]} 4. cxd5 {[%emt 0:02:29]} exd5 {[%emt 0:00:04]} 5. Bf4 {[%emt 0:00:13]} c6 {[%emt 0:00:07]} 6. e3 {[%emt 0:00:50]} Bd6 {[%emt 0:00:09] D31: Queen's Gambit Declined: Semi-Slav without ...Nf6 (+ Marshall Gambit and Noteboom) and Exchange Variation lines without ...Nf6} (6... Bf5 7. g4 Be6 8. h3 Nd7 9. Bd3 h5 10. gxh5 Ndf6 11. h6 Nxh6 12. Qc2 Qd7 13. Nf3 Bf5 14. Ne5 Bxd3 15. Nxd3 Nh5 16. Bh2 Qxh3 {½-½ (32) Radjabov,T (2757)-Giri,A (2783) Wijk aan Zee 2019}) 7. Qf3 {[%emt 0:03:42]} Bxf4 {[%emt 0:05:32]} 8. Qxf4 {[%emt 0:00:32]} Qf6 {[%emt 0:02:42]} 9. Nge2 $146 {[%emt 0:04:52]} ({Predecessor:} 9. Qc7 Ne7 10. Nf3 O-O 11. Bd3 b6 12. O-O Ba6 13. Bxa6 Nxa6 14. Qb7 {½-½ (38) Gorodetzky,D (2447)-Kravtsiv,M (2637) Israel 2019}) 9... Qxf4 {[%emt 0:03:37]} 10. Nxf4 {[%emt 0:00:08]} Bf5 {[%emt 0:02:02]} 11. f3 {[%emt 0:03:22]} Ne7 {[%emt 0:10:52]} 12. g4 {[%emt 0:02:46]} Bg6 {[%emt 0:00:36]} 13. h4 {[%emt 0:03:24]} h5 {[%emt 0:00:17]} 14. g5 {[%emt 0:02:39]} Nd7 {[%emt 0:04:05]} 15. Kf2 {[%emt 0:01:46]} O-O {[%emt 0:04:11]} 16. Rd1 {[%emt 0:05:06]} Rfe8 {[%emt 0:09:40]} 17. Bh3 {[%emt 0:11:25]} Nb6 {[%emt 0:02:01]} 18. Rhe1 {[%emt 0:01:56]} ({White should play} 18. e4 $16) 18... Bf5 {[%emt 0:14:16]} 19. Bf1 {[%emt 0:04:59]} g6 $14 {[%emt 0:02:21]} 20. Rd2 {[%emt 0:03:47]} Kf8 {[%emt 0:06:28]} 21. e4 {[%emt 0:02:00]} Be6 {[%emt 0:00:05]} 22. Bd3 {[%emt 0:03:23]} Nec8 {[%emt 0:01:37]} 23. Rde2 {[%emt 0:04:49]} Nd6 {[%emt 0:01:12]} 24. Nxe6+ {[%emt 0:00:46]} Rxe6 {[%emt 0:00:06]} 25. e5 {[%emt 0:00:08]} Ne8 {[%emt 0:02:10]} 26. f4 {[%emt 0:01:47]} Ng7 {[%emt 0:00:06]} 27. Rc2 {[%emt 0:00:21]} Ree8 {[%emt 0:01:57]} 28. Ne2 {[%emt 0:01:45]} Nc8 {[%emt 0:00:39]} 29. Ng3 {[%emt 0:01:11]} Ne7 {[%emt 0:00:27]} 30. Ke3 {[%emt 0:03:57]} Ngf5+ {[%emt 0:06:16]} 31. Bxf5 {[%emt 0:00:27]} Nxf5+ {[%emt 0:00:03]} 32. Nxf5 {[%emt 0:00:08]} gxf5 {[%emt 0:00:04]} 33. Kd3 {[%emt 0:02:33]} a5 {[%emt 0:00:58]} 34. Rg1 {[%emt 0:02:51]} Re6 {[%emt 0:01:36]} 35. Rb1 {[%emt 0:00:49]} b5 {[%emt 0:02:24]} 36. Rg1 {[%emt 0:04:38]} Ra6 {[%emt 0:04:43]} 37. Rc5 {[%emt 0:05:54]} Ke7 {[%emt 0:01:10]} 38. Kc2 {[%emt 0:01:02]} Rg6 {[%emt 0:00:55]} 39. Kb3 {[%emt 0:00:32]} Kd7 {[%emt 0:00:29]} 40. Rc2 {[%emt 0:01:07]} Ke7 {[%emt 0:00:35]} 41. Re2 {[%emt 0:30:18]} Kd7 {[%emt 0:31:07]} 42. Rc1 {[%emt 0:04:05]} Ke7 {[%emt 0:00:51]} 43. a3 {[%emt 0:09:02]} Kd7 {[%emt 0:00:09]} 44. Rc5 {[%emt 0:00:54]} Ke7 {[%emt 0:01:00]} 45. a4 {[%emt 0:00:50]} b4 {[%emt 0:00:05]} 46. Rec2 {[%emt 0:00:35]} Kd7 {[%emt 0:00:10]} 47. Rc1 {[%emt 0:00:48]} Ke7 {[%emt 0:01:41]} 48. Ra1 {[%emt 0:01:57]} Kd7 {[%emt 0:00:06]} 49. Ra2 {[%emt 0:00:00]} Ke7 {[%emt 0:00:00]} 50. Ra1 {[%emt 0:00:00]} 1/2-1/2

[Event "23rd Hoogeveen Open 2019"]
[Site "Hoogeveen"]
[Date "2019.10.20"]
[Round "2.14"]
[White "Tabak, Stefan"]
[Black "Seul, Georg"]
[Result "1-0"]
[ECO "C44"]
[WhiteElo "2181"]
[BlackElo "2411"]
[Annotator "NA"]
[PlyCount "65"]
[EventDate "2019.10.19"]
[EventType "swiss"]
[EventCountry "NED"]
[SourceTitle "playchess.com"]
[Source "ChessBase"]
[SourceQuality "1"]
[TimeControl "40/5400+30:1800+30"]

1. e4 {[%emt 0:00:00]} e5 {[%emt 0:00:00]} 2. d4 {[%emt 0:00:00]} exd4 {[%emt 0:00:00]} 3. c3 {[%emt 0:00:00]} d5 {[%emt 0:01:56]} 4. exd5 {[%emt 0:00:00]} Qxd5 {[%emt 0:00:21]} 5. cxd4 {[%emt 0:00:07]} Nc6 {[%emt 0:01:06]} 6. Be3 {[%emt 0:00:10]} Nf6 {[%emt 0:02:50]} 7. Nc3 {[%emt 0:00:11]} Bb4 {[%emt 0:01:06]} 8. Nf3 {[%emt 0:00:14]} Bg4 {[%emt 0:22:05]} 9. Be2 {[%emt 0:00:29]} Bxf3 {[%emt 0:04:31]} 10. Bxf3 {[%emt 0:00:19]} Qc4 {[%emt 0:00:14]} 11. Rc1 {[%emt 0:05:30]} Qxa2 {[%emt 0:15:31]} 12. O-O {[%emt 0:01:06]} Bxc3 {[%emt 0:00:26]} 13. bxc3 {[%emt 0:01:31]} O-O {[%emt 0:06:25]} 14. Bg5 {[%emt 0:03:30]} Rfe8 {[%emt 0:09:38]} 15. Bxf6 {[%emt 0:14:20]} gxf6 {[%emt 0:00:06]} 16. Rb1 {[%emt 0:02:08]} Rab8 {[%emt 0:06:39]} 17. Rb5 {[%emt 0:06:01] Remove Defender} Ne7 $16 {[%emt 0:07:35]} 18. Qc1 {[%emt 0:03:02]} Ng6 {[%emt 0:01:28]} 19. Qh6 {[%emt 0:03:54]} Qe6 {[%emt 0:02:57]} 20. Rh5 {[%emt 0:01:05]} Nf8 {[%emt 0:05:18]} 21. d5 {[%emt 0:06:17]} Qd6 {[%emt 0:01:00]} 22. Bg4 {[%emt 0:01:29]} Re5 {[%emt 0:03:48]} 23. Bf5 {[%emt 0:00:28]} Rbe8 {[%emt 0:00:19]} 24. c4 {[%emt 0:02:47]} b6 {[%emt 0:00:15]} 25. h4 {[%emt 0:11:26]} a5 {[%emt 0:00:33]} 26. f4 {[%emt 0:02:26]} Re3 {[%emt 0:00:48]} 27. Bxh7+ {[%emt 0:09:59]} Nxh7 {[%emt 0:00:05]} 28. Qxh7+ {[%emt 0:00:03]} Kf8 {[%emt 0:00:04]} 29. Qf5 {[%emt 0:00:38]} Ke7 {[%emt 0:01:17]} 30. Rh7 {[%emt 0:00:28]} a4 {[%emt 0:02:15]} 31. h5 {[%emt 0:00:19]} a3 {[%emt 0:00:16]} 32. h6 {[%emt 0:00:15]} Qc5 {[%emt 0:02:28]} 33. Rxf7+ {[%emt 0:00:34]} 1-0

[Event "23rd Hoogeveen Open 2019"]
[Site "Hoogeveen"]
[Date "2019.10.20"]
[Round "2.15"]
[White "Morozov, Nichita"]
[Black "Djukic, Sandra"]
[Result "1-0"]
[ECO "D24"]
[WhiteElo "2394"]
[BlackElo "2179"]
[Annotator "NA"]
[PlyCount "117"]
[EventDate "2019.10.19"]
[EventType "swiss"]
[EventCountry "NED"]
[SourceTitle "playchess.com"]
[Source "ChessBase"]
[SourceQuality "1"]
[TimeControl "40/5400+30:1800+30"]

1. d4 {[%emt 0:20:31]} d5 {[%emt 0:00:00]} 2. c4 {[%emt 0:01:50]} dxc4 {[%emt 0:00:17]} 3. Nf3 {[%emt 0:00:09]} Nf6 {[%emt 0:00:25]} 4. Nc3 {[%emt 0:01:07]} a6 {[%emt 0:00:05]} 5. a4 {[%emt 0:00:12]} Nc6 {[%emt 0:11:29]} 6. e4 {[%emt 0:17:34]} Na5 {[%emt 0:22:56]} 7. Ne5 {[%emt 0:04:42]} e6 {[%emt 0:31:16]} 8. Nxc4 {[%emt 0:01:20]} Bb4 $11 {[%emt 0:02:52]} 9. f3 {[%emt 0:00:05]} Nxe4 {[%emt 0:02:59]} 10. fxe4 {[%emt 0:01:25]} Qh4+ {[%emt 0:01:35]} 11. Kd2 {[%emt 0:00:02]} Qxe4 {[%emt 0:04:57]} 12. Nxa5 {[%emt 0:00:55]} Bxa5 {[%emt 0:02:52]} 13. Qf3 {[%emt 0:02:02]} Qxd4+ {[%emt 0:00:05]} 14. Kc2 {[%emt 0:00:30]} Bd7 {[%emt 0:08:54]} 15. Be3 {[%emt 0:00:37]} Qe5 {[%emt 0:00:21]} 16. Qf4 {[%emt 0:03:32]} Bxc3 {[%emt 0:03:33]} 17. bxc3 {[%emt 0:00:06]} Qd5 {[%emt 0:02:28]} 18. Qd4 {[%emt 0:04:36]} Qa5 {[%emt 0:00:59]} 19. Bd3 {[%emt 0:04:56]} O-O-O {[%emt 0:00:19]} 20. Qb4 {[%emt 0:02:03]} Qxb4 {[%emt 0:01:03]} 21. cxb4 {[%emt 0:00:03]} Bc6 {[%emt 0:00:04]} 22. b5 {[%emt 0:00:13]} axb5 {[%emt 0:00:36]} 23. axb5 {[%emt 0:00:02]} Bd5 {[%emt 0:00:09]} 24. Rhf1 {[%emt 0:01:44]} f6 {[%emt 0:00:11]} 25. Ra8+ {[%emt 0:02:40]} Kd7 {[%emt 0:00:01]} 26. Ra7 {[%emt 0:00:09]} h5 {[%emt 0:01:13]} 27. Rd1 {[%emt 0:00:43]} Ke7 {[%emt 0:00:42]} 28. Bg6 {[%emt 0:01:17]} Bb3+ {[%emt 0:01:07]} 29. Kxb3 {[%emt 0:00:03]} Rxd1 {[%emt 0:00:04]} 30. Rxb7 {[%emt 0:00:31]} Kd6 {[%emt 0:00:02]} 31. Kc4 {[%emt 0:00:31]} f5 {[%emt 0:00:37]} 32. Bf7 {[%emt 0:01:16]} h4 {[%emt 0:01:16]} 33. h3 {[%emt 0:02:31]} Rc8 {[%emt 0:00:24]} 34. Ra7 {[%emt 0:00:23]} Re1 {[%emt 0:00:35]} 35. Bc5+ {[%emt 0:01:01]} Ke5 {[%emt 0:00:15]} 36. Bd4+ {[%emt 0:02:46]} Kf4 {[%emt 0:00:12]} 37. Ra6 {[%emt 0:00:30]} e5 {[%emt 0:01:02]} 38. Bc3 {[%emt 0:00:01]} Rc1 {[%emt 0:00:31]} 39. Rg6 {[%emt 0:00:19]} Ra8 {[%emt 0:00:21]} 40. Kb3 {[%emt 0:01:10]} Rb1+ {[%emt 0:00:32]} 41. Bb2 {[%emt 0:30:13]} Rb8 {[%emt 0:08:21]} 42. Bc4 {[%emt 0:00:00]} Rb6 {[%emt 0:10:11]} 43. Rxg7 {[%emt 0:00:00]} c6 {[%emt 0:00:02]} 44. Rg6 {[%emt 0:00:00]} Rxb5+ {[%emt 0:05:59]} 45. Bxb5 {[%emt 0:00:00]} cxb5 {[%emt 0:00:03]} 46. Kc2 {[%emt 0:00:00]} Rg1 {[%emt 0:00:58]} 47. Ba3 {[%emt 0:00:00]} Ke4 {[%emt 0:01:11]} 48. Be7 {[%emt 0:00:00]} f4 {[%emt 0:00:09]} 49. Bxh4 {[%emt 0:00:00]} Ke3 {[%emt 0:00:51]} 50. Be7 {[%emt 0:00:00]} Ke2 {[%emt 0:00:36]} 51. Rg4 {[%emt 0:00:00]} e4 {[%emt 0:06:47]} 52. Rxf4 {[%emt 0:00:00]} Rxg2 {[%emt 0:00:05]} 53. Rxe4+ {[%emt 0:00:00]} Kf3+ {[%emt 0:00:03]} 54. Kd3 {[%emt 0:00:00]} Rg1 {[%emt 0:01:51]} 55. Re3+ {[%emt 0:00:00]} Kf4 {[%emt 0:00:04]} 56. Bd6+ {[%emt 0:00:00]} Kf5 {[%emt 0:00:03]} 57. Rf3+ {[%emt 0:00:00]} Ke6 {[%emt 0:00:03]} 58. Bb4 {[%emt 0:00:00]} Rb1 {[%emt 0:00:36]} 59. Bc3 {[%emt 0:00:00]} 1-0

[Event "23rd Hoogeveen Open 2019"]
[Site "Hoogeveen"]
[Date "2019.10.20"]
[Round "2.16"]
[White "Blagojevic, Tijana"]
[Black "Jonkman, Harmen"]
[Result "0-1"]
[ECO "C00"]
[WhiteElo "2151"]
[BlackElo "2383"]
[Annotator "NA"]
[PlyCount "57"]
[EventDate "2019.10.19"]
[EventType "swiss"]
[EventCountry "NED"]
[SourceTitle "playchess.com"]
[Source "ChessBase"]
[SourceQuality "1"]
[TimeControl "40/5400+30:1800+30"]

1. e4 {[%emt 0:00:00]} e6 {[%emt 0:00:00]} 2. Nf3 {[%emt 0:00:19]} d5 {[%emt 0:00:00]} 3. Nc3 {[%emt 0:00:03]} Nf6 {[%emt 0:00:00]} 4. e5 {[%emt 0:00:24]} Nfd7 {[%emt 0:00:00]} 5. Ne2 {[%emt 0:00:22]} c5 {[%emt 0:00:07]} 6. c3 {[%emt 0:00:05]} Qa5 {[%emt 0:00:12]} 7. a3 {[%emt 0:04:19]} Nc6 {[%emt 0:10:52]} 8. d4 {[%emt 0:00:28]} cxd4 {[%emt 0:00:09]} 9. b4 {[%emt 0:00:33]} Qc7 {[%emt 0:00:12]} 10. cxd4 {[%emt 0:01:09]} b5 {[%emt 0:00:11]} 11. Nf4 {[%emt 0:04:43]} Qb6 {[%emt 0:01:27]} 12. Rb1 {[%emt 0:16:00]} a5 {[%emt 0:13:34]} 13. bxa5 {[%emt 0:01:34]} Rxa5 {[%emt 0:00:20]} 14. Be2 {[%emt 0:06:21]} Ba6 {[%emt 0:01:13]} 15. Rb3 {[%emt 0:28:22]} Ra4 {[%emt 0:09:16]} 16. Rb1 $17 {[%emt 0:02:47]} (16. O-O $11) 16... Ra5 {[%emt 0:25:38]} 17. Rb3 {[%emt 0:01:33]} Be7 {[%emt 0:00:20]} 18. h4 {[%emt 0:00:07]} Ra4 {[%emt 0:00:47]} 19. Rb1 {[%emt 0:01:49]} Qa7 {[%emt 0:19:08]} 20. O-O {[%emt 0:18:42]} O-O {[%emt 0:03:58]} 21. Rxb5 {[%emt 0:00:00]} Rxd4 {[%emt 0:04:59]} 22. Nxd4 {[%emt 0:00:00]} Nxd4 {[%emt 0:00:34]} 23. Ra5 {[%emt 0:01:03]} Nxe2+ {[%emt 0:00:33]} 24. Qxe2 {[%emt 0:00:52]} Ra8 {[%emt 0:01:30]} 25. Qe3 {[%emt 0:06:19]} Qc7 {[%emt 0:01:35]} 26. Bd2 {[%emt 0:02:52]} Nxe5 {[%emt 0:00:03]} 27. Qg3 {[%emt 0:02:02]} Nc4 {[%emt 0:00:43]} 28. Bc3 {[%emt 0:00:02]} g6 {[%emt 0:00:23]} 29. Ra4 {[%emt 0:00:00]} 0-1

[Event "23rd Hoogeveen Open 2019"]
[Site "Hoogeveen"]
[Date "2019.10.20"]
[Round "2.17"]
[White "Vestby-Ellingsen, Mads"]
[Black "Giacomini, Hector"]
[Result "1-0"]
[ECO "D36"]
[WhiteElo "2363"]
[BlackElo "2145"]
[Annotator "NA"]
[PlyCount "73"]
[EventDate "2019.10.19"]
[EventType "swiss"]
[EventCountry "NED"]
[SourceTitle "playchess.com"]
[Source "ChessBase"]
[SourceQuality "1"]
[TimeControl "40/5400+30:1800+30"]

1. d4 {[%emt 0:00:00]} d5 {[%emt 0:00:00]} 2. c4 {[%emt 0:00:00]} e6 {[%emt 0:00:00]} 3. Nc3 {[%emt 0:00:18]} Nf6 {[%emt 0:00:00]} 4. cxd5 {[%emt 0:00:19]} exd5 {[%emt 0:00:00]} 5. Bg5 {[%emt 0:00:13]} Be7 {[%emt 0:00:00]} 6. e3 {[%emt 0:00:14]} O-O {[%emt 0:00:12]} 7. Bd3 {[%emt 0:00:17]} Nbd7 {[%emt 0:00:14]} 8. Qc2 {[%emt 0:00:23]} Re8 {[%emt 0:00:28]} 9. Nge2 {[%emt 0:00:55]} Nf8 {[%emt 0:00:25]} 10. O-O {[%emt 0:00:32]} c6 {[%emt 0:02:15]} 11. f3 {[%emt 0:00:41]} Be6 {[%emt 0:00:16]} 12. Rad1 {[%emt 0:01:08]} Rc8 {[%emt 0:00:11]} 13. e4 {[%emt 0:00:20] D36: Queen's Gambit Declined: Exchange Variation: Main line (5 Bg5 c6 6 Qc2)} dxe4 {[%emt 0:00:34]} 14. fxe4 {[%emt 0:00:13]} Ng4 {[%emt 0:00:36]} 15. Bf4 {[%emt 0:00:16]} Ng6 {[%emt 0:06:19]} 16. e5 {[%emt 0:00:19]} Bg5 {[%emt 0:01:45]} 17. Bxg6 {[%emt 0:00:47]} hxg6 {[%emt 0:00:35]} 18. Qd2 {[%emt 0:00:42]} Bxf4 {[%emt 0:01:23]} 19. Nxf4 {[%emt 0:00:16]} Bc4 {[%emt 0:24:58]} 20. Rfe1 {[%emt 0:00:17] [#]} g5 $146 {[%emt 0:04:17]} ({Predecessor:} 20... c5) 21. Nh5 {[%emt 0:14:43]} Bd5 $16 {[%emt 0:22:56]} (21... f5 $11) 22. Ng3 {[%emt 0:28:47]} f6 {[%emt 0:05:33]} 23. h3 {[%emt 0:17:58]} Nh6 {[%emt 0:00:45]} 24. Qc2 {[%emt 0:06:44]} Bf7 {[%emt 0:08:26]} 25. Nce4 {[%emt 0:01:41]} fxe5 {[%emt 0:02:41]} 26. dxe5 {[%emt 0:00:13]} Qb6+ {[%emt 0:00:14]} 27. Nc5 {[%emt 0:00:47]} Bxa2 {[%emt 0:02:33]} 28. b3 {[%emt 0:04:03]} Rcd8 {[%emt 0:01:42]} 29. Rxd8 {[%emt 0:06:20]} Rxd8 {[%emt 0:00:04]} 30. Nge4 {[%emt 0:00:11]} Bxb3 {[%emt 0:08:37]} 31. Qxb3+ {[%emt 0:00:20]} Qxb3 {[%emt 0:00:07]} 32. Nxb3 {[%emt 0:00:09]} g4 {[%emt 0:00:12]} 33. Nd6 {[%emt 0:04:13]} Nf7 {[%emt 0:02:17]} 34. Nxb7 {[%emt 0:01:00]} Re8 {[%emt 0:02:16]} 35. e6 {[%emt 0:01:01]} Kf8 {[%emt 0:00:13]} 36. N3c5 {[%emt 0:01:29]} Ng5 {[%emt 0:01:07]} 37. Nd6 {[%emt 0:00:45]} 1-0